[Event "Live Chess"]
[Site "Chess.com"]
[Date "2023.05.21"]
[Round "-"]
[White "Ian-Morley"]
[Black "MarkLim1"]
[Result "0-1"]
[WhiteElo "1120"]
[BlackElo "1722"]
[TimeControl "300"]
[EndTime "9:02:45 PDT"]
[Termination "MarkLim1 won by resignation"]

1. e4 {[%clk 0:04:58.9]} 1... c6 {[%clk 0:04:58.9]} 2. Nf3 {[%clk 0:04:57.1]}
2... d5 {[%clk 0:04:58.8]} 3. exd5 {[%clk 0:04:56.1]} 3... cxd5 {[%clk
0:04:58.2]} 4. d4 {[%clk 0:04:55.6]} 4... Bg4 {[%clk 0:04:57.2]} 5. Be2 {[%clk
0:04:53.8]} 5... Nc6 {[%clk 0:04:56.2]} 6. Nc3 {[%clk 0:04:51.1]} 6... e6 {[%clk
0:04:55.1]} 7. Bf4 {[%clk 0:04:49.1]} 7... Qb6 {[%clk 0:04:54.3]} 8. b3 {[%clk
0:04:47.1]} 8... Bxf3 {[%clk 0:04:53]} 9. Bxf3 {[%clk 0:04:45.9]} 9... Nxd4
{[%clk 0:04:52.2]} 10. O-O {[%clk 0:04:30.3]} 10... Nxf3+ {[%clk 0:04:49.2]} 11.
Qxf3 {[%clk 0:04:28.1]} 11... Nf6 {[%clk 0:04:48.5]} 12. Be5 {[%clk 0:04:26.7]}
12... Be7 {[%clk 0:04:47.6]} 13. Bxf6 {[%clk 0:04:25.7]} 13... Bxf6 {[%clk
0:04:46.6]} 14. Rad1 {[%clk 0:04:22]} 14... O-O {[%clk 0:04:44.3]} 15. a4 {[%clk
0:04:16.2]} 15... Rac8 {[%clk 0:04:43]} 16. Nb5 {[%clk 0:04:15]} 16... a6 {[%clk
0:04:41.2]} 17. Na3 {[%clk 0:04:07.1]} 17... Rc3 {[%clk 0:04:37.5]} 18. Qe2
{[%clk 0:04:01.7]} 18... Qc5 {[%clk 0:04:33]} 19. h3 {[%clk 0:03:51.5]} 19...
Qxa3 {[%clk 0:04:31.2]} 20. Rd3 {[%clk 0:03:49.7]} 20... Qc5 {[%clk 0:04:26.3]}
21. Rxc3 {[%clk 0:03:48.6]} 21... Qxc3 {[%clk 0:04:25.4]} 22. Qd3 {[%clk
0:03:47.5]} 22... Qxd3 {[%clk 0:04:23.8]} 23. cxd3 {[%clk 0:03:47.1]} 23... Rc8
{[%clk 0:04:21.8]} 24. Rd1 {[%clk 0:03:45.1]} 24... g6 {[%clk 0:04:20.6]} 25.
Kh2 {[%clk 0:03:43.6]} 25... Bd4 {[%clk 0:04:19.3]} 26. f3 {[%clk 0:03:42]}
26... Rc3 {[%clk 0:04:17.6]} 27. b4 {[%clk 0:03:39.4]} 27... Rb3 {[%clk
0:04:16.2]} 28. b5 {[%clk 0:03:38.2]} 28... axb5 {[%clk 0:04:15.3]} 29. axb5
{[%clk 0:03:37.6]} 29... Rxb5 {[%clk 0:04:15.2]} 30. Ra1 {[%clk 0:03:37.2]} 0-1

[Event "Live Chess"]
[Site "Chess.com"]
[Date "2023.05.21"]
[Round "-"]
[White "whatnot126"]
[Black "viktorskliarov"]
[Result "0-1"]
[WhiteElo "2067"]
[BlackElo "2629"]
[TimeControl "300"]
[EndTime "9:03:05 PDT"]
[Termination "viktorskliarov won by resignation"]

1. e4 {[%clk 0:04:58.2]} 1... c5 {[%clk 0:04:58.4]} 2. c3 {[%clk 0:04:57.3]}
2... d6 {[%clk 0:04:52.9]} 3. d4 {[%clk 0:04:55.5]} 3... Nf6 {[%clk 0:04:51.6]}
4. Bd3 {[%clk 0:04:51.6]} 4... g6 {[%clk 0:04:48.7]} 5. Bg5 {[%clk 0:04:39.8]}
5... Bg7 {[%clk 0:04:42.9]} 6. f4 {[%clk 0:04:37.9]} 6... O-O {[%clk 0:04:41]}
7. Nf3 {[%clk 0:04:36.7]} 7... cxd4 {[%clk 0:04:39.7]} 8. cxd4 {[%clk
0:04:30.7]} 8... Nc6 {[%clk 0:04:39.2]} 9. h3 {[%clk 0:04:24.6]} 9... d5 {[%clk
0:04:32.1]} 10. e5 {[%clk 0:04:18.2]} 10... Ne4 {[%clk 0:04:31.2]} 11. O-O
{[%clk 0:04:13.2]} 11... Qb6 {[%clk 0:04:30.2]} 12. Nc3 {[%clk 0:03:56.7]} 12...
Nxd4 {[%clk 0:04:24.3]} 13. Kh2 {[%clk 0:03:39.9]} 13... Nxf3+ {[%clk
0:04:22.4]} 14. gxf3 {[%clk 0:03:28.8]} 14... Nxg5 {[%clk 0:04:21.7]} 15. fxg5
{[%clk 0:03:26.7]} 15... Bxe5+ {[%clk 0:04:21.1]} 16. f4 {[%clk 0:03:25.2]}
16... Bxc3 {[%clk 0:04:20.6]} 17. bxc3 {[%clk 0:03:24.5]} 17... Be6 {[%clk
0:04:19.1]} 18. Qf3 {[%clk 0:03:07.9]} 18... Qc7 {[%clk 0:04:10.8]} 19. h4
{[%clk 0:03:06.6]} 19... Qxc3 {[%clk 0:04:03.6]} 20. Rad1 {[%clk 0:02:58.8]}
20... Rac8 {[%clk 0:04:01.4]} 21. h5 {[%clk 0:02:56.7]} 21... b5 {[%clk
0:03:47.9]} 22. Rc1 {[%clk 0:02:32.6]} 22... Qb2+ {[%clk 0:03:46]} 0-1

[Event "Live Chess"]
[Site "Chess.com"]
[Date "2023.05.21"]
[Round "-"]
[White "Ferrarifan27"]
[Black "mattihelenius2"]
[Result "1-0"]
[WhiteElo "2051"]
[BlackElo "483"]
[TimeControl "300"]
[EndTime "9:03:06 PDT"]
[Termination "Ferrarifan27 won by resignation"]

1. e4 {[%clk 0:04:59.1]} 1... e6 {[%clk 0:04:56]} 2. d4 {[%clk 0:04:57.6]} 2...
Nc6 {[%clk 0:04:55.1]} 3. d5 {[%clk 0:04:56.4]} 3... Nd4 {[%clk 0:04:53.7]} 4.
Qxd4 {[%clk 0:04:54.4]} 4... Nf6 {[%clk 0:04:53]} 5. Bg5 {[%clk 0:04:50.7]} 5...
Be7 {[%clk 0:04:49.6]} 6. Nf3 {[%clk 0:04:48.3]} 6... b6 {[%clk 0:04:41.6]} 7.
Nc3 {[%clk 0:04:45.8]} 7... Bc5 {[%clk 0:04:40.2]} 8. Qd3 {[%clk 0:04:43.2]}
8... h6 {[%clk 0:04:35.4]} 9. Bh4 {[%clk 0:04:41.5]} 9... Be7 {[%clk 0:04:32.3]}
10. Bxf6 {[%clk 0:04:37.4]} 10... Bxf6 {[%clk 0:04:31]} 11. e5 {[%clk
0:04:36.6]} 11... Bg5 {[%clk 0:04:26.4]} 12. dxe6 {[%clk 0:04:33.6]} 12... fxe6
{[%clk 0:04:14.5]} 13. Qg6+ {[%clk 0:04:31.7]} 13... Ke7 {[%clk 0:04:12.6]} 14.
Qxg7+ {[%clk 0:04:30.2]} 14... Ke8 {[%clk 0:04:06.5]} 1-0

[Event "Live Chess"]
[Site "Chess.com"]
[Date "2023.05.21"]
[Round "-"]
[White "domrobson"]
[Black "manthanit"]
[Result "1-0"]
[WhiteElo "1789"]
[BlackElo "1120"]
[TimeControl "300"]
[EndTime "9:03:10 PDT"]
[Termination "domrobson won by checkmate"]

1. d4 {[%clk 0:04:58.9]} 1... e6 {[%clk 0:04:59.4]} 2. c4 {[%clk 0:04:58.1]}
2... d5 {[%clk 0:04:59]} 3. Nf3 {[%clk 0:04:56.9]} 3... c5 {[%clk 0:04:58.1]} 4.
Nc3 {[%clk 0:04:56.2]} 4... cxd4 {[%clk 0:04:57.3]} 5. Nxd4 {[%clk 0:04:54.6]}
5... dxc4 {[%clk 0:04:56.7]} 6. e4 {[%clk 0:04:53]} 6... Nf6 {[%clk 0:04:50.5]}
7. Bg5 {[%clk 0:04:51.4]} 7... Be7 {[%clk 0:04:49.1]} 8. e5 {[%clk 0:04:50.5]}
8... Nd5 {[%clk 0:04:46.2]} 9. Bxe7 {[%clk 0:04:50.1]} 9... Nxe7 {[%clk
0:04:42.1]} 10. Bxc4 {[%clk 0:04:49.4]} 10... O-O {[%clk 0:04:40.3]} 11. O-O
{[%clk 0:04:49]} 11... b6 {[%clk 0:04:39.5]} 12. Qb3 {[%clk 0:04:47.6]} 12...
Bb7 {[%clk 0:04:38.3]} 13. Bxe6 {[%clk 0:04:45.8]} 13... fxe6 {[%clk 0:04:36.1]}
14. Nxe6 {[%clk 0:04:44.5]} 14... Kh8 {[%clk 0:04:27.9]} 15. Nxd8 {[%clk
0:04:42.5]} 15... Rxd8 {[%clk 0:04:27.5]} 16. Rad1 {[%clk 0:04:41]} 16... Na6
{[%clk 0:04:25.7]} 17. Qa3 {[%clk 0:04:37.8]} 17... Rxd1 {[%clk 0:04:19.2]} 18.
Rxd1 {[%clk 0:04:36.2]} 18... Rg8 {[%clk 0:04:15.9]} 19. Qxe7 {[%clk 0:04:34.5]}
19... Nc5 {[%clk 0:04:14]} 20. b4 {[%clk 0:04:31.3]} 20... Bxg2 {[%clk
0:04:04.8]} 21. bxc5 {[%clk 0:04:29.4]} 21... Bf3 {[%clk 0:04:03.1]} 22. Rd7
{[%clk 0:04:27.6]} 22... bxc5 {[%clk 0:04:01.6]} 23. Nd5 {[%clk 0:04:20.2]}
23... Bxd5 {[%clk 0:04:00.1]} 24. Rxd5 {[%clk 0:04:18.9]} 24... h6 {[%clk
0:03:58.5]} 25. Rd8 {[%clk 0:04:18.5]} 25... Kh7 {[%clk 0:03:55.8]} 26. Rxg8
{[%clk 0:04:15.7]} 26... Kxg8 {[%clk 0:03:54.7]} 27. Qxc5 {[%clk 0:04:15.6]}
27... Kh7 {[%clk 0:03:54]} 28. Qxa7 {[%clk 0:04:15.5]} 28... Kg6 {[%clk
0:03:53]} 29. Qd7 {[%clk 0:04:15.4]} 29... Kh7 {[%clk 0:03:52.4]} 30. Qg4 {[%clk
0:04:15.3]} 30... Kg8 {[%clk 0:03:51.6]} 31. Qf5 {[%clk 0:04:15.1]} 31... Kh8
{[%clk 0:03:50.4]} 32. e6 {[%clk 0:04:15]} 32... Kg8 {[%clk 0:03:49.2]} 33. Qf7+
{[%clk 0:04:14]} 33... Kh7 {[%clk 0:03:48.2]} 34. Qf5+ {[%clk 0:04:13.3]} 34...
Kg8 {[%clk 0:03:47.5]} 35. e7 {[%clk 0:04:12.9]} 35... Kh8 {[%clk 0:03:46]} 36.
e8=Q# {[%clk 0:04:12.3]} 1-0

[Event "Live Chess"]
[Site "Chess.com"]
[Date "2023.05.21"]
[Round "-"]
[White "ossie57"]
[Black "Grookey2012"]
[Result "1-0"]
[WhiteElo "1818"]
[BlackElo "568"]
[TimeControl "300"]
[EndTime "9:03:13 PDT"]
[Termination "ossie57 won by resignation"]

1. e4 {[%clk 0:04:57.2]} 1... e5 {[%clk 0:04:58.9]} 2. Nf3 {[%clk 0:04:56.1]}
2... d5 {[%clk 0:04:57.7]} 3. exd5 {[%clk 0:04:51.2]} 3... Qxd5 {[%clk
0:04:55.6]} 4. Nc3 {[%clk 0:04:49.7]} 4... e4 {[%clk 0:04:55.5]} 5. Nxd5 {[%clk
0:04:48.2]} 5... Bf5 {[%clk 0:04:54.7]} 6. Nxc7+ {[%clk 0:04:47.1]} 6... Kd8
{[%clk 0:04:52.7]} 7. Nxa8 {[%clk 0:04:46]} 7... Kc8 {[%clk 0:04:52.6]} 8. Nd4
{[%clk 0:04:44.2]} 8... Kd8 {[%clk 0:04:52.5]} 9. Nxf5 {[%clk 0:04:43.5]} 9...
Kc8 {[%clk 0:04:52.4]} 10. Qg4 {[%clk 0:04:42.6]} 10... Kd8 {[%clk 0:04:52.3]}
11. Nd4 {[%clk 0:04:41.8]} 1-0

[Event "Live Chess"]
[Site "Chess.com"]
[Date "2023.05.21"]
[Round "-"]
[White "zdanevych"]
[Black "HoarseyHorsey"]
[Result "0-1"]
[WhiteElo "1451"]
[BlackElo "1476"]
[TimeControl "300"]
[EndTime "9:03:18 PDT"]
[Termination "HoarseyHorsey won by resignation"]

1. d4 {[%clk 0:04:59.5]} 1... Nf6 {[%clk 0:04:58.7]} 2. c4 {[%clk 0:04:58.9]}
2... e6 {[%clk 0:04:57.8]} 3. Nc3 {[%clk 0:04:58.5]} 3... d5 {[%clk 0:04:57.4]}
4. c5 {[%clk 0:04:57.5]} 4... b6 {[%clk 0:04:55.4]} 5. cxb6 {[%clk 0:04:56.6]}
5... axb6 {[%clk 0:04:54.6]} 6. Nf3 {[%clk 0:04:56.2]} 6... c5 {[%clk 0:04:50]}
7. e3 {[%clk 0:04:54.6]} 7... Nc6 {[%clk 0:04:47.9]} 8. Bd3 {[%clk 0:04:49.4]}
8... Bd6 {[%clk 0:04:46.6]} 9. O-O {[%clk 0:04:44.7]} 9... O-O {[%clk
0:04:45.3]} 10. h3 {[%clk 0:04:44]} 10... Re8 {[%clk 0:04:44.3]} 11. Bd2 {[%clk
0:04:43]} 11... e5 {[%clk 0:04:35.1]} 12. dxe5 {[%clk 0:04:41.7]} 12... Nxe5
{[%clk 0:04:35]} 13. Nxe5 {[%clk 0:04:39.8]} 13... Bxe5 {[%clk 0:04:34.9]} 14.
Rc1 {[%clk 0:04:37.9]} 14... d4 {[%clk 0:04:29.3]} 15. exd4 {[%clk 0:04:36]}
15... Bxd4 {[%clk 0:04:28.1]} 16. Bb1 {[%clk 0:04:34]} 16... Bb7 {[%clk
0:04:24.1]} 17. Bg5 {[%clk 0:04:29.3]} 17... Qd6 {[%clk 0:04:18.8]} 18. Bxf6
{[%clk 0:04:26.9]} 18... Qxf6 {[%clk 0:04:13.4]} 19. Qd3 {[%clk 0:04:20.9]}
19... g6 {[%clk 0:04:05.1]} 20. Ne2 {[%clk 0:04:16.6]} 20... Rad8 {[%clk
0:03:57.9]} 21. Nxd4 {[%clk 0:04:12.7]} 21... Rxd4 {[%clk 0:03:52.1]} 22. Qc3
{[%clk 0:04:10.5]} 22... Red8 {[%clk 0:03:46.8]} 23. Bc2 {[%clk 0:04:06.2]}
23... Qg5 {[%clk 0:03:45.6]} 24. Qg3 {[%clk 0:04:02.4]} 24... Qxg3 {[%clk
0:03:43.9]} 25. fxg3 {[%clk 0:04:02.3]} 25... Rd2 {[%clk 0:03:39.5]} 26. Rf2
{[%clk 0:03:58.1]} 26... Rxf2 {[%clk 0:03:33.7]} 27. Kxf2 {[%clk 0:03:58]} 27...
Rd2+ {[%clk 0:03:32.3]} 28. Ke3 {[%clk 0:03:51.6]} 28... Rxg2 {[%clk 0:03:30.9]}
29. Kf4 {[%clk 0:03:46.1]} 29... Kg7 {[%clk 0:03:20.2]} 30. Re1 {[%clk
0:03:43.5]} 30... Rxc2 {[%clk 0:03:16.9]} 0-1

[Event "Live Chess"]
[Site "Chess.com"]
[Date "2023.05.21"]
[Round "-"]
[White "educatedlad"]
[Black "Duke_of_Bebington"]
[Result "1-0"]
[WhiteElo "1614"]
[BlackElo "1540"]
[TimeControl "300"]
[EndTime "9:03:18 PDT"]
[Termination "educatedlad won by resignation"]

1. e4 {[%clk 0:04:55.3]} 1... d5 {[%clk 0:04:59.9]} 2. exd5 {[%clk 0:04:53.8]}
2... Nf6 {[%clk 0:04:56.7]} 3. d4 {[%clk 0:04:52.1]} 3... Nxd5 {[%clk
0:04:56.1]} 4. c4 {[%clk 0:04:50.4]} 4... Nb6 {[%clk 0:04:54.3]} 5. Nf3 {[%clk
0:04:48.7]} 5... c6 {[%clk 0:04:53]} 6. Nc3 {[%clk 0:04:47.5]} 6... Bf5 {[%clk
0:04:49.7]} 7. c5 {[%clk 0:04:46.7]} 7... Nd5 {[%clk 0:04:48.2]} 8. Bc4 {[%clk
0:04:46.2]} 8... e6 {[%clk 0:04:46.4]} 9. O-O {[%clk 0:04:45.3]} 9... h6 {[%clk
0:04:45.7]} 10. Re1 {[%clk 0:04:44.2]} 10... Nd7 {[%clk 0:04:44.4]} 11. Bxd5
{[%clk 0:04:41]} 11... Be7 {[%clk 0:04:37.9]} 12. Be4 {[%clk 0:04:33.8]} 12...
O-O {[%clk 0:04:27.6]} 13. Bxf5 {[%clk 0:04:32]} 13... exf5 {[%clk 0:04:27]} 14.
Ne5 {[%clk 0:04:30]} 14... Nxe5 {[%clk 0:04:25.5]} 15. Rxe5 {[%clk 0:04:29.9]}
15... Bf6 {[%clk 0:04:22.5]} 16. Rxf5 {[%clk 0:04:28.3]} 16... Bxd4 {[%clk
0:04:20]} 17. Qg4 {[%clk 0:04:17.7]} 17... Bf6 {[%clk 0:04:04.4]} 18. Bxh6
{[%clk 0:04:15]} 1-0

[Event "Live Chess"]
[Site "Chess.com"]
[Date "2023.05.21"]
[Round "-"]
[White "RichardABates"]
[Black "Biranidun"]
[Result "0-1"]
[WhiteElo "2187"]
[BlackElo "2528"]
[TimeControl "300"]
[EndTime "9:03:19 PDT"]
[Termination "Biranidun won by resignation"]

1. d4 {[%clk 0:04:58.2]} 1... Nf6 {[%clk 0:04:58.8]} 2. Nf3 {[%clk 0:04:56.7]}
2... g6 {[%clk 0:04:58.3]} 3. c4 {[%clk 0:04:55.2]} 3... Bg7 {[%clk 0:04:57.9]}
4. g3 {[%clk 0:04:53.7]} 4... O-O {[%clk 0:04:57.8]} 5. Bg2 {[%clk 0:04:52.1]}
5... d6 {[%clk 0:04:57.3]} 6. O-O {[%clk 0:04:50.7]} 6... Nbd7 {[%clk
0:04:57.2]} 7. Nc3 {[%clk 0:04:48.9]} 7... e5 {[%clk 0:04:57.1]} 8. e4 {[%clk
0:04:47.8]} 8... c6 {[%clk 0:04:56.2]} 9. Rb1 {[%clk 0:04:45]} 9... exd4 {[%clk
0:04:54.2]} 10. Nxd4 {[%clk 0:04:43.5]} 10... Re8 {[%clk 0:04:53.8]} 11. b3
{[%clk 0:04:41.2]} 11... Nc5 {[%clk 0:04:47.1]} 12. f3 {[%clk 0:04:30.7]} 12...
a5 {[%clk 0:04:42.9]} 13. Kh1 {[%clk 0:04:19.1]} 13... Nfd7 {[%clk 0:04:38.4]}
14. Be3 {[%clk 0:04:13.9]} 14... Ne5 {[%clk 0:04:36.1]} 15. Qd2 {[%clk
0:04:10.2]} 15... Qc7 {[%clk 0:04:30.9]} 16. a3 {[%clk 0:03:44.2]} 16... a4
{[%clk 0:04:27.8]} 17. b4 {[%clk 0:03:43]} 17... Nxc4 {[%clk 0:04:21.3]} 18. Qe2
{[%clk 0:03:38.8]} 18... Nxe3 {[%clk 0:04:20.7]} 19. Qxe3 {[%clk 0:03:37.9]}
19... Ne6 {[%clk 0:04:19.4]} 20. Nxe6 {[%clk 0:03:32.1]} 20... Bxe6 {[%clk
0:04:19.3]} 21. f4 {[%clk 0:03:30.2]} 21... Bb3 {[%clk 0:04:17.2]} 22. e5 {[%clk
0:03:20.7]} 22... dxe5 {[%clk 0:04:16.1]} 23. f5 {[%clk 0:03:19.1]} 23... gxf5
{[%clk 0:04:08.6]} 24. Rxf5 {[%clk 0:03:17.8]} 24... Bc2 {[%clk 0:04:07.8]} 25.
Rg5 {[%clk 0:03:16.1]} 25... Bxb1 {[%clk 0:04:05]} 26. Nxb1 {[%clk 0:03:13.7]}
26... f6 {[%clk 0:03:57.6]} 27. Rh5 {[%clk 0:03:08]} 27... Qf7 {[%clk
0:03:54.8]} 28. g4 {[%clk 0:03:07.1]} 28... Rad8 {[%clk 0:03:31.3]} 29. Be4
{[%clk 0:02:55.8]} 29... h6 {[%clk 0:03:26.8]} 30. Nc3 {[%clk 0:02:48.4]} 30...
Rd4 {[%clk 0:03:24.7]} 31. Ne2 {[%clk 0:02:43.5]} 31... Rxe4 {[%clk 0:03:22.9]}
32. Qxe4 {[%clk 0:02:42.3]} 32... Qd5 {[%clk 0:03:22.3]} 33. Nc3 {[%clk
0:02:40.3]} 33... Qxe4+ {[%clk 0:03:19.8]} 34. Nxe4 {[%clk 0:02:39.3]} 34... Rd8
{[%clk 0:03:18.3]} 35. Nc5 {[%clk 0:02:33.9]} 35... b5 {[%clk 0:03:15.3]} 36.
Rf5 {[%clk 0:02:29.5]} 36... Kf7 {[%clk 0:03:12.6]} 37. Kg2 {[%clk 0:02:28]}
37... Rd4 {[%clk 0:03:09.9]} 38. h3 {[%clk 0:02:22.9]} 38... Bf8 {[%clk
0:03:08.6]} 0-1

[Event "Live Chess"]
[Site "Chess.com"]
[Date "2023.05.21"]
[Round "-"]
[White "BillythekidFellowes"]
[Black "Missedidea"]
[Result "0-1"]
[WhiteElo "2110"]
[BlackElo "1787"]
[TimeControl "300"]
[EndTime "9:03:21 PDT"]
[Termination "Missedidea won by checkmate"]

1. e4 {[%clk 0:04:52.2]} 1... c5 {[%clk 0:04:58.6]} 2. Nf3 {[%clk 0:04:52.1]}
2... d6 {[%clk 0:04:56.9]} 3. d4 {[%clk 0:04:49.8]} 3... cxd4 {[%clk 0:04:56]}
4. Nxd4 {[%clk 0:04:49.7]} 4... Nf6 {[%clk 0:04:55.2]} 5. Bc4 {[%clk 0:04:49.4]}
5... g6 {[%clk 0:04:53.8]} 6. Bg5 {[%clk 0:04:48.4]} 6... Bg7 {[%clk 0:04:52.4]}
7. h4 {[%clk 0:04:47.9]} 7... O-O {[%clk 0:04:43.1]} 8. f3 {[%clk 0:04:45.5]}
8... Nc6 {[%clk 0:04:39.2]} 9. Nxc6 {[%clk 0:04:41.7]} 9... bxc6 {[%clk
0:04:37.2]} 10. h5 {[%clk 0:04:41.6]} 10... Nxh5 {[%clk 0:04:26.4]} 11. Rxh5
{[%clk 0:04:40.9]} 11... Qa5+ {[%clk 0:04:13.8]} 12. c3 {[%clk 0:04:35]} 12...
gxh5 {[%clk 0:04:11]} 13. Bxe7 {[%clk 0:04:34.1]} 13... d5 {[%clk 0:04:03.5]}
14. Bxf8 {[%clk 0:04:30.8]} 14... Bxf8 {[%clk 0:03:59.5]} 15. exd5 {[%clk
0:04:28.6]} 15... Bf5 {[%clk 0:03:44.4]} 16. dxc6 {[%clk 0:04:15.8]} 16... Qc5
{[%clk 0:03:37]} 17. Qd5 {[%clk 0:04:04.1]} 17... Qg1+ {[%clk 0:03:34.4]} 18.
Ke2 {[%clk 0:04:02.5]} 18... Re8+ {[%clk 0:03:30.7]} 19. Kd2 {[%clk 0:03:59.1]}
19... Qe1# {[%clk 0:03:28.3]} 0-1

[Event "Live Chess"]
[Site "Chess.com"]
[Date "2023.05.21"]
[Round "-"]
[White "FunSingingHawk"]
[Black "lHolyDiverl"]
[Result "0-1"]
[WhiteElo "657"]
[BlackElo "567"]
[TimeControl "300"]
[EndTime "9:03:32 PDT"]
[Termination "lHolyDiverl won on time"]

1. d4 {[%clk 0:04:50.8]} 1... d5 {[%clk 0:04:56.6]} 2. c4 {[%clk 0:04:47.1]}
2... Nf6 {[%clk 0:04:52.9]} 3. Nf3 {[%clk 0:04:44.2]} 3... Bf5 {[%clk
0:04:35.6]} 4. Nc3 {[%clk 0:04:36.7]} 4... Ne4 {[%clk 0:04:23.4]} 5. Nxd5 {[%clk
0:04:28.4]} 5... e6 {[%clk 0:04:11.5]} 6. e3 {[%clk 0:04:23.1]} 6... exd5 {[%clk
0:04:07.3]} 7. cxd5 {[%clk 0:04:21.5]} 7... Qxd5 {[%clk 0:03:47.4]} 8. Bd3
{[%clk 0:04:10.7]} 8... Bb4+ {[%clk 0:03:26.3]} 9. Bd2 {[%clk 0:03:45.3]} 9...
Nxd2 {[%clk 0:03:24.8]} 10. Bb5+ {[%clk 0:03:23.1]} 10... Qxb5 {[%clk
0:03:11.5]} 11. Nxd2 {[%clk 0:02:58]} 11... Qc6 {[%clk 0:02:46.6]} 12. a3 {[%clk
0:02:52.1]} 12... Qxg2 {[%clk 0:02:41.8]} 13. Ke2 {[%clk 0:02:39.8]} 13... Bd6
{[%clk 0:02:20.6]} 14. Rg1 {[%clk 0:02:08.1]} 14... Bg4+ {[%clk 0:00:58.7]} 15.
Nf3 {[%clk 0:01:29.1]} 15... Qxf3+ {[%clk 0:00:45.3]} 16. Ke1 {[%clk 0:01:25]}
16... Qxd1+ {[%clk 0:00:35.3]} 17. Rxd1 {[%clk 0:01:17.1]} 17... Bxd1 {[%clk
0:00:34.4]} 18. Kxd1 {[%clk 0:01:15]} 18... O-O {[%clk 0:00:32.9]} 19. e4 {[%clk
0:01:04.2]} 19... Nc6 {[%clk 0:00:30.9]} 20. e5 {[%clk 0:00:58.5]} 20... Be7
{[%clk 0:00:25.5]} 21. d5 {[%clk 0:00:53.8]} 21... Rad8 {[%clk 0:00:21.9]} 22.
Rg4 {[%clk 0:00:24.2]} 22... Rxd5+ {[%clk 0:00:19.2]} 23. Ke1 {[%clk 0:00:21.1]}
23... Rxe5+ {[%clk 0:00:15]} 24. Kd1 {[%clk 0:00:18.6]} 24... Rd8+ {[%clk
0:00:14.2]} 25. Kc1 {[%clk 0:00:15.4]} 25... Re1+ {[%clk 0:00:12.1]} 26. Kc2
{[%clk 0:00:13.5]} 26... Nd4+ {[%clk 0:00:09.5]} 27. Kd3 {[%clk 0:00:08.7]}
27... Nb3+ {[%clk 0:00:06.7]} 28. Kc4 {[%clk 0:00:05.1]} 28... Na1 {[%clk
0:00:03.8]} 0-1

[Event "Live Chess"]
[Site "Chess.com"]
[Date "2023.05.21"]
[Round "-"]
[White "SupremeTactician"]
[Black "Dhaydon19"]
[Result "0-1"]
[WhiteElo "2141"]
[BlackElo "2688"]
[TimeControl "300"]
[EndTime "9:03:41 PDT"]
[Termination "Dhaydon19 won by resignation"]

1. e4 {[%clk 0:04:59.5]} 1... c6 {[%clk 0:04:58.9]} 2. d4 {[%clk 0:04:55.7]}
2... d5 {[%clk 0:04:57.8]} 3. Nc3 {[%clk 0:04:55.6]} 3... dxe4 {[%clk
0:04:56.8]} 4. Nxe4 {[%clk 0:04:55.5]} 4... Nf6 {[%clk 0:04:56.4]} 5. Nxf6+
{[%clk 0:04:55.3]} 5... exf6 {[%clk 0:04:55.6]} 6. c3 {[%clk 0:04:55.2]} 6...
Bd6 {[%clk 0:04:55.1]} 7. Bd3 {[%clk 0:04:55.1]} 7... O-O {[%clk 0:04:54.4]} 8.
Qc2 {[%clk 0:04:55]} 8... Re8+ {[%clk 0:04:53.6]} 9. Ne2 {[%clk 0:04:54.9]} 9...
g6 {[%clk 0:04:52.5]} 10. O-O {[%clk 0:04:54.5]} 10... Nd7 {[%clk 0:04:51.7]}
11. Re1 {[%clk 0:04:53.5]} 11... f5 {[%clk 0:04:51]} 12. Be3 {[%clk 0:04:52.3]}
12... Nf6 {[%clk 0:04:50.4]} 13. Rad1 {[%clk 0:04:51.4]} 13... Ng4 {[%clk
0:04:48.2]} 14. Bf4 {[%clk 0:04:50]} 14... Rxe2 {[%clk 0:04:41.5]} 15. Bxe2
{[%clk 0:04:49.3]} 15... Bxf4 {[%clk 0:04:40.4]} 16. Bxg4 {[%clk 0:04:49.1]}
16... fxg4 {[%clk 0:04:39.2]} 17. g3 {[%clk 0:04:49]} 17... Bf5 {[%clk
0:04:37.2]} 18. Qb3 {[%clk 0:04:47.4]} 18... Bd6 {[%clk 0:04:32.2]} 19. Qxb7
{[%clk 0:04:45.7]} 19... Rc8 {[%clk 0:04:31.4]} 20. Re3 {[%clk 0:04:42.5]} 20...
h5 {[%clk 0:04:29.4]} 21. Rde1 {[%clk 0:04:38]} 21... Kg7 {[%clk 0:04:24.8]} 22.
Qxa7 {[%clk 0:04:34.8]} 22... c5 {[%clk 0:04:23.9]} 23. Qb7 {[%clk 0:04:31.7]}
23... h4 {[%clk 0:04:22.1]} 24. Qd5 {[%clk 0:04:22.9]} 24... hxg3 {[%clk
0:04:20.8]} 25. fxg3 {[%clk 0:04:22.8]} 25... Qf6 {[%clk 0:04:18.3]} 26. dxc5
{[%clk 0:04:19.8]} 26... Bxc5 {[%clk 0:04:16.8]} 27. Kg2 {[%clk 0:04:18.4]}
27... Bxe3 {[%clk 0:04:15.3]} 28. Rxe3 {[%clk 0:04:18.3]} 28... Rd8 {[%clk
0:04:08.4]} 29. Qe5 {[%clk 0:04:13.2]} 29... Rd2+ {[%clk 0:04:07.1]} 30. Kf1
{[%clk 0:04:11.8]} 0-1

[Event "Live Chess"]
[Site "Chess.com"]
[Date "2023.05.21"]
[Round "-"]
[White "youtookmyhorse"]
[Black "MaximKris"]
[Result "0-1"]
[WhiteElo "784"]
[BlackElo "1795"]
[TimeControl "300"]
[EndTime "9:03:48 PDT"]
[Termination "MaximKris won by checkmate"]

1. e4 {[%clk 0:04:57.8]} 1... e5 {[%clk 0:04:58.8]} 2. Nc3 {[%clk 0:04:56.3]}
2... Nc6 {[%clk 0:04:56.6]} 3. Nf3 {[%clk 0:04:52.8]} 3... Bc5 {[%clk
0:04:55.2]} 4. Bb5 {[%clk 0:04:49.4]} 4... Nf6 {[%clk 0:04:54]} 5. Bxc6 {[%clk
0:04:34.6]} 5... dxc6 {[%clk 0:04:53.9]} 6. O-O {[%clk 0:04:32.3]} 6... Bg4
{[%clk 0:04:52.2]} 7. d3 {[%clk 0:04:28.5]} 7... Bxf3 {[%clk 0:04:41.5]} 8. Qxf3
{[%clk 0:04:23]} 8... Qd7 {[%clk 0:04:40.8]} 9. Bg5 {[%clk 0:04:20.4]} 9...
O-O-O {[%clk 0:04:39.6]} 10. Bxf6 {[%clk 0:04:18.8]} 10... gxf6 {[%clk
0:04:39.5]} 11. Qxf6 {[%clk 0:04:17.2]} 11... Rhg8 {[%clk 0:04:39.4]} 12. Qxe5
{[%clk 0:04:11.8]} 12... Bd4 {[%clk 0:04:37.4]} 13. Qa5 {[%clk 0:04:06.3]} 13...
Rxg2+ {[%clk 0:04:35.1]} 14. Kxg2 {[%clk 0:04:02.3]} 14... Qg4+ {[%clk
0:04:34.3]} 15. Kh1 {[%clk 0:03:56.3]} 15... Qf3+ {[%clk 0:04:34.2]} 16. Kg1
{[%clk 0:03:47.8]} 16... Rg8+ {[%clk 0:04:34.1]} 17. Qg5 {[%clk 0:03:39.3]}
17... Rxg5# {[%clk 0:04:34]} 0-1